bitfinex-derivatives/quotes_SOLF0:USTF0_20250830
["timestamp","ask_amount","ask_price","bid_price","bid_amount"]
[1756518246914,7.43,203.74,203.65,7.62]
[1756518247117,0.03328757,203.72,203.65,7.62]
[1756518247317,7.57,203.71,203.65,7.62]
[1756518248317,3.45394159,203.7,203.6,7.41]
[1756518248521,10.46615258,203.72,203.6,7.41]
[1756518248723,3.45394947,203.71,203.6,7.41]
[1756518248922,0.03539753,203.68,203.6,7.41]
[1756518249719,11.02601142,203.67,203.6,7.41]
[1756518250023,3.45617046,203.66,203.6,7.41]
[1756518250225,3.45744847,203.65,203.6,7.41]
[1756518250418,0.03539753,203.68,203.6,7.41]
[1756518250624,3.45753616,203.67,203.61,7.41]
[1756518250824,3.45753616,203.66,203.6,2.86286501]
[1756518251125,7.60539753,203.68,203.61,7.41]
[1756518251318,3.45874173,203.67,203.61,7.41]
[1756518251520,3.45874173,203.66,203.61,7.41]
[1756518251824,7.60539753,203.68,203.61,7.41]
[1756518252019,3.45874109,203.67,203.61,7.41]
[1756518252216,3.45874109,203.66,203.61,7.41]
[1756518252424,3.45874109,203.65,203.6,2.86286501]
[1756518252626,7.60539753,203.68,203.61,7.41]
[1756518252818,3.46052189,203.67,203.61,7.41]
[1756518253122,3.46052189,203.66,203.61,7.41]
[1756518253320,7.60539753,203.68,203.61,7.41]
[1756518253519,3.46189534,203.67,203.61,7.41]
[1756518253714,3.46189534,203.66,203.61,7.41]
[1756518253920,3.46189534,203.65,203.58,7.41]
[1756518254121,3.4620325,203.64,203.58,7.41]
[1756518254425,7.57,203.69,203.58,7.41]
[1756518254626,0.03089444,203.63,203.58,7.41]
[1756518254826,0.03089444,203.63,203.57,2.86286501]
[1756518256022,0.03089444,203.63,203.58,7.41]
[1756518256419,0.03089444,203.63,203.57,2.86286501]
[1756518256925,0.03089444,203.63,203.58,7.41]
[1756518258428,0.03089444,203.63,203.6,2.86286501]
[1756518258624,0.03089444,203.63,203.61,7.41]
[1756518259019,0.03089444,203.63,203.6,2.86286501]
[1756518259422,0.03089444,203.63,203.61,7.41]
[1756518260420,0.03089444,203.63,203.58,7.41]
[1756518261321,0.03089444,203.63,203.6,2.86286501]
[1756518261624,0.03089444,203.63,203.61,7.41]
[1756518261825,0.03089444,203.63,203.6,2.86286501]
[1756518262019,0.03089444,203.63,203.61,7.41]
[1756518262222,0.03089444,203.63,203.6,2.86286501]
[1756518262718,0.03089444,203.63,203.61,7.41]
[1756518263124,0.03089444,203.63,203.6,2.86286501]
[1756518263324,0.03089444,203.63,203.61,7.41]
[1756518264124,0.03089444,203.63,203.6,2.86286501]
[1756518265628,0.03089444,203.63,203.61,7.41]
[1756518265827,0.03089444,203.63,203.6,2.86286501]
[1756518266835,0.03089444,203.63,203.61,7.41]
[1756518267238,0.03089444,203.63,203.6,2.86286501]
[1756518267638,0.03089444,203.63,203.61,7.41]
[1756518268137,0.03089444,203.63,203.6,2.86286501]
[1756518269033,0.03089444,203.63,203.61,7.41]
[1756518270139,0.03089444,203.63,203.6,2.86286501]
[1756518270939,0.03089444,203.63,203.61,7.41]
[1756518271937,0.03089444,203.63,203.6,2.86286501]
[1756518272134,0.03089444,203.63,203.61,7.41]
[1756518272639,0.03089444,203.63,203.6,2.86286501]
[1756518272940,0.03089444,203.63,203.61,7.41]
[1756518273240,0.03089444,203.63,203.6,2.86286501]
[1756518273843,0.03089444,203.63,203.61,7.41]
[1756518274043,0.03089444,203.63,203.6,2.86286501]
[1756518274243,0.03089444,203.63,203.61,7.41]
[1756518274438,0.03089444,203.63,203.58,2.86286501]
[1756518274638,0.03089444,203.63,203.59,7.41]
[1756518275139,0.03089444,203.63,203.57,7.41]
[1756518277039,0.03089444,203.63,203.6,7.87]
[1756518277538,0.03089444,203.63,203.59,2.86286501]
[1756518277936,0.03089444,203.63,203.6,7.87]
[1756518279045,0.03089444,203.63,203.59,2.86286501]
[1756518279444,0.03089444,203.63,203.6,7.87]
[1756518279941,0.03089444,203.63,203.59,2.86286501]
[1756518280142,0.03089444,203.63,203.6,7.87]
[1756518280543,0.03089444,203.63,203.56,7.87]
[1756518280742,0.03089444,203.63,203.57,2.86286501]
[1756518280944,0.03089444,203.63,203.58,7.87]
[1756518281147,7.8,203.62,203.55,7.87]
[1756518281545,7.8,203.62,203.51,7.87]
[1756518282152,0.03155908,203.59,203.51,7.87]
[1756518282348,7.83155908,203.59,203.51,7.87]
[1756518287253,7.8,203.56,203.48,7.87]
[1756518287857,0.03504218,203.54,203.48,7.87]
[1756518300566,0.03504218,203.54,203.5,2.86286501]
[1756518300763,0.03504218,203.54,203.51,7.87]
[1756518302169,0.03504218,203.54,203.49,2.86286501]
[1756518303266,0.03504218,203.54,203.5,7.87]
[1756518303473,7.8,203.53,203.5,7.87]
[1756518308976,7.16,203.53,203.44,2.86286501]
[1756518309184,7.16,203.53,203.45,7.24]
[1756518309585,0.0377703,203.51,203.45,7.24]
[1756518310377,7.16,203.5,203.45,7.24]
[1756518310782,0.0377703,203.51,203.45,7.24]
[1756518310985,7.1977703,203.51,203.45,7.24]
[1756518313889,0.0377703,203.51,203.45,7.24]
[1756518317987,7.16,203.48,203.39,8.09520495]
[1756518318292,7.16,203.48,203.39,7.24]
[1756518318693,0.03626846,203.46,203.39,7.24]
[1756518319591,7.16,203.45,203.39,7.24]
[1756518319895,2.89913347,203.46,203.39,7.24]
[1756518320490,0.03626846,203.46,203.39,7.24]
[1756518320786,2.89913347,203.46,203.39,7.24]
[1756518323490,7.16,203.45,203.39,7.24]
[1756518324189,7.16,203.45,203.35,7.24]
[1756518324399,2.86286501,203.43,203.35,7.24]
[1756518324892,0.03303553,203.41,203.35,7.24]
[1756518329092,7.16,203.4,203.35,7.24]
[1756518329302,0.03303553,203.41,203.35,7.24]
[1756518329498,7.16,203.4,203.29,7.24]
[1756518329705,7.16,203.38,203.29,7.24]
[1756518330197,0.03612603,203.36,203.29,7.24]
[1756518331302,7.19612603,203.36,203.29,7.24]
[1756518331697,0.03612603,203.36,203.29,7.24]
[1756518333003,2.89899104,203.36,203.29,7.24]
[1756518333202,0.03612603,203.36,203.29,7.24]
[1756518334114,2.86286501,203.34,203.24,0.85576226]
[1756518334309,7.16,203.33,203.25,7.24]
[1756518334703,0.03685792,203.31,203.25,7.24]
[1756518338806,2.86286501,203.29,203.25,7.24]
[1756518339109,2.86286501,203.29,203.2,7.48]
[1756518339914,0.03223436,203.27,203.23,7.48]
[1756518340306,2.86286501,203.35,203.23,7.48]
[1756518340611,0.03457533,203.27,203.23,7.48]
[1756518341307,0.03457533,203.27,203.23,10.34286501]
[1756518341511,0.03457533,203.27,203.24,7.48]
[1756518342011,0.03457533,203.27,203.23,7.48]
[1756518343306,0.03457533,203.27,203.22,2.86286501]
[1756518343603,0.03457533,203.27,203.23,7.48]
[1756518344006,0.03457533,203.27,203.2,7.48]
[1756518344216,0.03457533,203.27,203.23,7.48]
[1756518348308,0.03457533,203.27,203.26,7.48]
[1756518352113,0.03457533,203.27,203.22,7.48]
[1756518353715,0.03457533,203.27,203.21,2.86286501]
[1756518354013,0.03457533,203.27,203.22,7.48]
[1756518354415,0.03457533,203.27,203.24,2.86286501]
[1756518354609,0.03457533,203.27,203.23,2.86286501]
[1756518354808,0.03457533,203.27,203.24,7.48]
[1756518355011,0.03457533,203.27,203.24,2.86286501]
[1756518355811,0.03457533,203.27,203.25,7.48]
[1756518356012,0.03457533,203.27,203.24,2.86286501]
[1756518356316,0.03457533,203.27,203.25,7.48]
[1756518356510,0.03457533,203.27,203.24,2.86286501]
[1756518357020,0.03457533,203.27,203.25,7.48]
[1756518357206,0.03457533,203.27,203.24,2.86286501]
[1756518357410,0.03457533,203.27,203.25,7.48]
[1756518357605,0.03457533,203.27,203.24,2.86286501]
[1756518357813,0.03457533,203.27,203.25,7.48]
[1756518358213,0.03457533,203.27,203.24,2.86286501]
[1756518358406,0.03457533,203.27,203.23,2.86286501]
[1756518358610,0.03457533,203.27,203.23,7.48]
[1756518359307,0.03457533,203.27,203.22,2.86286501]
[1756518359514,0.03457533,203.27,203.23,7.48]
[1756518361915,0.03457533,203.27,203.22,2.86286501]
[1756518362114,0.03457533,203.27,203.23,7.48]
[1756518363109,0.03457533,203.27,203.25,7.48]
[1756518363316,0.03457533,203.27,203.24,7.48]
[1756518363514,7.72457533,203.27,203.24,7.48]
[1756518363920,7.72457533,203.27,203.22,7.48]
[1756518363921,0.03457533,203.27,203.22,7.48]
[1756518365425,0.03457533,203.27,203.21,2.86286501]
[1756518365817,0.03457533,203.27,203.25,7.48]
[1756518366918,0.03457533,203.27,203.25,7.67]
[1756518367117,7.2,203.38,203.25,8.17]
[1756518367322,7.2,203.38,203.28,7.67]
[1756518367517,7.2,203.36,203.28,7.67]
[1756518367720,2.86286501,203.31,203.24,7.67]
[1756518367921,2.86286501,203.31,203.2,10.53286501]
[1756518368123,7.2,203.3,203.2,10.53286501]
[1756518368322,7.2,203.3,203.23,0.03691015]
[1756518369121,7.2,203.3,203.24,7.67]
[1756518369829,7.2,203.36,203.24,7.67]
[1756518370024,2.86286501,203.34,203.24,7.67]
[1756518370222,7.2,203.33,203.24,7.67]
[1756518370423,7.2,203.33,203.27,0.0349358]
[1756518372430,7.2,203.31,203.27,0.0349358]
[1756518372924,2.86286501,203.32,203.27,0.0349358]
[1756518373119,7.2,203.33,203.27,0.0349358]
[1756518375327,7.2,203.38,203.29,7.67]
[1756518375533,7.2,203.38,203.31,2.86286501]
[1756518376029,7.2,203.38,203.32,7.70565229]
[1756518376422,337.82,203.41,203.32,7.70565229]
[1756518377635,10.06286501,203.46,203.35,7.67]
[1756518378332,10.06286501,203.46,203.38,0.03728092]
[1756518378529,7.2,203.42,203.38,0.03728092]
[1756518378730,2.86286501,203.43,203.38,0.03728092]
[1756518378932,7.2,203.42,203.38,0.03728092]
[1756518379130,2.86286501,203.43,203.38,0.03728092]
[1756518379633,2.86286501,203.44,203.38,0.03728092]
[1756518379835,7.2,203.43,203.38,0.03728092]
[1756518380029,2.86286501,203.44,203.38,0.03728092]
[1756518380231,7.2,203.43,203.38,0.03728092]
[1756518380930,7.2,203.44,203.38,7.70728092]
[1756518381231,7.2,203.44,203.38,0.03728092]
[1756518384427,10.06286501,203.44,203.38,0.03728092]
[1756518385431,122.28,203.43,203.38,0.03728092]
[1756518385625,7.2,203.42,203.38,0.03728092]
[1756518386433,7.2,203.4,203.38,0.03728092]
[1756518386833,7.7,203.4,203.38,0.03728092]
[1756518387432,7.2,203.39,203.38,0.03728092]
[1756518389337,129.42,203.39,203.38,0.03728092]
[1756518389831,7.2,203.39,203.38,0.03728092]
[1756518390136,48.98,203.39,203.38,0.03728092]
[1756518390437,7.2,203.4,203.38,0.03728092]
[1756518390633,7.2,203.39,203.38,0.03728092]
[1756518390838,7.2,203.39,203.3,7.67]
[1756518392039,0.03116481,203.37,203.3,7.67]
[1756518393135,7.2,203.36,203.26,2.86286501]
[1756518393438,10.06286501,203.36,203.26,10.53286501]
[1756518394342,7.2,203.35,203.26,10.53286501]
[1756518395030,0.03627052,203.33,203.26,10.53286501]
[1756518395641,0.03627052,203.33,203.26,7.67]
[1756518396138,10.09913553,203.33,203.26,7.67]
[1756518396937,10.09913553,203.33,203.18,5.50346299]
[1756518397244,7.6,203.36,203.26,7.56]
[1756518397639,0.03718533,203.28,203.23,7.56]
[1756518397941,2.86286501,203.35,203.23,7.56]
[1756518398140,0.0353279,203.28,203.2,7.56]
[1756518399143,0.0353279,203.28,203.22,7.56]
[1756518399543,2.86286501,203.3,203.22,7.56]
[1756518399743,0.03747654,203.27,203.22,7.56]
[1756518400242,0.03747654,203.27,203.21,2.86286501]
[1756518400440,0.03747654,203.27,203.22,7.56]
[1756518401245,0.03747654,203.27,203.25,7.56]
[1756518401447,0.03747654,203.27,203.24,2.86286501]
[1756518401651,48.46286501,203.33,203.25,7.56]
[1756518401844,0.03239948,203.28,203.25,7.56]
[1756518402042,0.03239948,203.28,203.24,2.86286501]
[1756518402440,0.03239948,203.28,203.25,7.56]
[1756518402646,0.03239948,203.28,203.24,2.86286501]
[1756518402946,0.03239948,203.28,203.25,7.56]
[1756518403546,7.6,203.38,203.28,7.56]
[1756518403850,2.86286501,203.37,203.28,7.56]
[1756518404451,7.6,203.38,203.28,7.56]
[1756518404653,7.6,203.38,203.31,7.56]
[1756518405553,7.6,203.42,203.31,7.56]
[1756518405754,2.86286501,203.4,203.31,7.56]
[1756518405950,7.6,203.39,203.31,7.56]
[1756518406155,7.6,203.39,203.27,2.86286501]
[1756518406357,7.6,203.36,203.28,7.56]
[1756518407056,7.6,203.36,203.3,0.03406631]
[1756518407653,7.6,203.36,203.3,7.59406631]
[1756518408056,7.6,203.41,203.31,7.56]
[1756518408648,2.86286501,203.38,203.34,0.03381942]
[1756518408849,7.6,203.37,203.34,0.03381942]
[1756518409053,10.46286501,203.35,203.21,7.56]
[1756518409249,7.6,203.31,203.21,10.42286501]
[1756518410353,0.03580305,203.28,203.21,10.42286501]
[1756518412658,7.6,203.27,203.16,13.06346299]
[1756518412854,7.6,203.27,203.17,7.56]
[1756518413259,0.03497287,203.24,203.17,7.56]
[1756518423665,2.86286501,203.36,203.22,7.56]
[1756518423963,7.6,203.32,203.24,7.56]
[1756518424963,7.6,203.32,203.26,0.03159851]
[1756518427864,2.86286501,203.3,203.26,0.03159851]
[1756518428066,7.39,203.29,203.26,0.03159851]
[1756518428266,7.39,203.29,203.19,7.84]
[1756518428561,2.86286501,203.3,203.25,0.03692278]
[1756518428762,7.39,203.29,203.25,0.03692278]
[1756518429767,2.86286501,203.27,203.25,0.03692278]
[1756518429966,0.5,203.28,203.25,0.03692278]
[1756518429967,10.25286501,203.26,203.25,0.03692278]
[1756518430365,7.39,203.26,203.25,0.03692278]
[1756518432571,7.39,203.29,203.25,0.03692278]
[1756518432772,7.39,203.29,203.25,7.87692278]
[1756518433172,7.39,203.32,203.25,0.03692278]
[1756518438877,7.39,203.26,203.25,0.03692278]
[1756518439571,7.89,203.26,203.16,7.84]
[1756518439777,7.39,203.22,203.16,7.84]
[1756518439977,10.25286501,203.22,203.16,7.84]
[1756518440979,0.03608427,203.21,203.12,7.84]
[1756518441280,0.03608427,203.21,203.14,7.84]
[1756518442279,0.03608427,203.21,203.09,5.50346299]
[1756518442280,7.39,203.2,203.09,7.84]
[1756518442479,2.86286501,203.19,203.09,7.84]
[1756518442979,0.03250315,203.16,203.09,7.84]
[1756518446589,0.03250315,203.16,203.09,10.70286501]
[1756518446794,0.03250315,203.16,203.1,7.84]
[1756518447595,0.03250315,203.16,203.13,7.84]
[1756518447893,0.03250315,203.16,203.15,7.84]
[1756518448989,0.03250315,203.16,203.15,8.34]
[1756518449793,2.86286501,203.28,203.15,8.34]
[1756518449993,2.86286501,203.25,203.15,7.84]
[1756518450385,7.39,203.24,203.15,7.84]
[1756518451795,7.39,203.24,203.17,0.03505214]
[1756518452796,20.59,203.24,203.17,0.03505214]
[1756518459398,10.74286501,203.23,203.17,0.03505214]
[1756518460495,7.88,203.19,203.17,0.03505214]
[1756518460998,2.86286501,203.2,203.17,0.03505214]
[1756518461199,2.86286501,203.21,203.17,0.03505214]
[1756518461801,7.88,203.2,203.17,0.03505214]
[1756518462003,2.86286501,203.21,203.17,0.03505214]
[1756518462503,7.88,203.2,203.17,0.03505214]
[1756518462699,2.86286501,203.21,203.17,0.03505214]
[1756518463094,7.88,203.2,203.17,0.03505214]
[1756518463696,2.86286501,203.21,203.17,0.03505214]
[1756518465009,7.88,203.2,203.17,0.03505214]
[1756518465209,2.86286501,203.21,203.17,0.03505214]
[1756518466006,7.88,203.2,203.17,0.03505214]
[1756518466310,27.94,203.24,203.17,0.03505214]
[1756518466311,10.74286501,203.18,203.17,0.03505214]
[1756518466914,11.24286501,203.18,203.02,7.52]
[1756518467212,10.74286501,203.18,203.06,7.52]
[1756518468313,0.03607274,203.14,203.06,7.52]
[1756518469011,7.85,203.13,203.01,0.85676301]
[1756518469313,7.85,203.13,203.04,7.52]
[1756518469609,0.03210689,203.09,203.04,7.52]
[1756518469810,0.03210689,203.09,203.0,2.86286501]
[1756518469811,7.85,203.2,203.07,7.52]
[1756518470012,7.85,203.2,203.1,7.52]
[1756518471215,7.85,203.2,203.12,2.86286501]
[1756518471412,7.85,203.2,203.13,7.52]
[1756518472720,10.71286501,203.2,203.13,7.52]
[1756518473217,7.85,203.2,203.13,7.52]
[1756518473517,10.71286501,203.2,203.13,7.52]
[1756518473718,7.85,203.2,203.13,7.52]
[1756518474817,7.85,203.2,203.09,7.52]
[1756518475121,2.86286501,203.18,203.09,7.52]
[1756518475324,7.88,203.17,203.09,7.52]
[1756518476713,7.88,203.15,203.06,7.52]
[1756518481026,134.84286501,203.19,203.08,7.52]
[1756518481423,2.86286501,203.11,203.01,7.52]
[1756518481627,7.88,203.1,203.01,7.52]
[1756518482330,10.74286501,203.07,202.97,7.52]
[1756518482731,7.88,203.07,202.97,7.52]
[1756518484332,10.74286501,203.07,202.97,7.52]
[1756518486132,5.44917053,203.17,202.92,13.54]
[1756518486133,7.88,203.02,202.92,2.86286501]
[1756518486431,2.86286501,203.04,202.93,7.52]
[1756518487838,7.88,203.05,202.94,2.86286501]
[1756518488030,7.88,203.05,202.95,7.77]
[1756518488433,2.86286501,203.03,202.95,7.77]
[1756518489627,10.74286501,203.05,202.95,7.77]
[1756518490029,10.74286501,203.05,202.96,7.77]
[1756518490533,7.19,203.16,202.99,2.86286501]
[1756518490731,2.86286501,203.11,203.0,7.77]
[1756518491436,7.19,203.12,203.02,2.86286501]
[1756518491636,7.19,203.12,203.03,7.77]
[1756518492237,7.19,203.12,203.04,2.86286501]
[1756518492736,7.19,203.17,203.05,7.77]
[1756518493138,2.86286501,203.15,203.05,7.77]
[1756518493337,7.19,203.14,203.05,7.77]
[1756518495430,2.86286501,203.12,203.05,7.77]
[1756518495630,2.86286501,203.09,203.0,7.77]
[1756518496139,7.19,203.08,203.0,7.77]
[1756518496334,2.86286501,203.06,202.95,2.86286501]
[1756518496640,7.19,203.05,202.96,7.77]
[1756518497840,10.05286501,203.05,202.96,7.77]
[1756518499235,10.05286501,203.05,202.88,0.85732235]
[1756518499433,2.86286501,203.04,202.93,10.63286501]
[1756518501141,2.86286501,203.04,202.93,7.77]
[1756518501842,7.19,203.03,202.93,7.77]
[1756518503239,7.19,203.03,202.93,10.63286501]
[1756518503838,7.19,203.03,202.93,2.86286501]
[1756518504141,7.19,203.03,202.94,7.77]
[1756518504342,10.05286501,203.07,202.97,7.77]
[1756518511144,7.19,203.07,202.97,7.77]
[1756518511444,10.05286501,203.07,202.97,7.77]
[1756518512146,7.19,203.07,202.97,7.77]
[1756518512447,7.19,203.07,202.99,7.77]
[1756518514545,2.86286501,203.09,202.99,7.77]
[1756518514747,15.0,203.1,202.91,18.22346299]
[1756518514748,15.0,203.1,203.01,2.86286501]
[1756518514948,15.0,203.1,203.02,7.77]
[1756518515243,7.19,203.11,203.02,7.77]
[1756518516346,7.19,203.09,202.93,7.77]
[1756518516541,2.86286501,203.03,202.93,7.77]
[1756518517645,7.67,203.02,202.93,7.77]
[1756518518749,2.86286501,203.0,202.93,7.77]
[1756518521355,7.67,202.96,202.89,7.98]
[1756518522451,2.86286501,202.95,202.89,7.98]
[1756518529456,7.67,202.94,202.81,8.83768155]
[1756518529660,10.53286501,202.9,202.81,7.98]
[1756518531663,7.67,202.9,202.82,7.98]
[1756518536773,10.53286501,202.95,202.84,7.98]
[1756518539070,7.67,202.95,202.84,7.98]
[1756518539275,10.53286501,202.95,202.84,7.98]
[1756518540675,10.53286501,202.98,202.87,7.98]
[1756518540973,7.67,202.98,202.87,7.98]
[1756518541470,7.67,202.98,202.9,7.98]
[1756518541677,7.67,202.98,202.9,10.84286501]
[1756518541970,7.67,203.02,202.91,7.98]
[1756518542378,2.86286501,203.0,202.91,7.98]
[1756518542578,2.86286501,203.0,202.87,10.84286501]
[1756518542874,7.67,202.98,202.87,10.84286501]
[1756518543175,2.86286501,203.0,202.87,10.84286501]
[1756518543376,2.36069776,202.99,202.87,10.84286501]
[1756518543577,7.67,202.99,202.88,7.98]
[1756518543876,2.86286501,203.03,202.92,2.86286501]
[1756518544074,7.67,203.02,202.92,2.86286501]
[1756518544572,7.67,203.02,202.91,7.98]
[1756518544772,7.67,203.02,202.92,2.86286501]
[1756518545476,7.67,203.02,202.93,7.98]
[1756518550078,7.19,202.95,202.85,10.72286501]
[1756518551776,7.19,202.95,202.85,2.86286501]
[1756518552076,7.19,202.95,202.84,7.86]
[1756518552980,7.19,202.95,202.86,2.86286501]
[1756518553172,2.86286501,203.0,202.87,7.86]
[1756518553376,2.36024162,202.99,202.9,7.86]
[1756518553679,10.05286501,203.0,202.9,7.86]
[1756518554176,2.3608125,202.99,202.9,7.86]
[1756518554476,7.19,203.0,202.9,7.86]
[1756518554677,2.36099035,202.99,202.9,7.86]
[1756518554872,7.19,203.0,202.9,7.86]
[1756518555074,2.36109685,202.99,202.9,7.86]
[1756518555279,10.05286501,202.98,202.85,2.86286501]
[1756518555481,7.19,202.96,202.86,7.86]
[1756518556377,2.86286501,203.02,202.89,7.86]
[1756518556682,7.19,203.0,202.89,7.86]
[1756518556875,7.19,203.0,202.91,7.86]
[1756518557473,7.19,203.0,202.91,10.72286501]
[1756518558083,7.19,203.0,202.91,2.86286501]
[1756518558282,7.19,203.0,202.92,7.86]
[1756518559779,7.19,202.98,202.84,7.86]
[1756518559978,7.19,202.98,202.87,10.72286501]
[1756518561189,2.36704777,202.97,202.87,10.72286501]
[1756518561489,7.19,202.98,202.87,10.72286501]
[1756518561689,2.36717476,202.97,202.87,2.86286501]
[1756518561880,7.19,202.98,202.9,2.86286501]
[1756518562189,2.36718202,202.97,202.89,2.86286501]
[1756518562488,7.19,202.98,202.89,2.86286501]
[1756518562788,2.36840852,202.97,202.89,2.86286501]
[1756518562991,7.19,202.98,202.89,2.86286501]
[1756518563184,2.36840852,202.97,202.89,2.86286501]
[1756518563479,7.19,202.98,202.89,2.86286501]
[1756518563683,2.36884246,202.97,202.89,2.86286501]
[1756518563887,7.19,202.98,202.89,2.86286501]
[1756518564184,2.36884246,202.97,202.89,2.86286501]
[1756518564486,7.19,202.98,202.89,2.86286501]
[1756518564688,2.36901452,202.97,202.89,2.86286501]
[1756518564990,7.19,202.98,202.89,2.86286501]
[1756518565288,2.36899396,202.97,202.89,2.86286501]
[1756518565488,7.19,202.98,202.89,2.86286501]
[1756518565688,2.36900335,202.97,202.89,2.86286501]
[1756518565888,7.19,202.98,202.89,2.86286501]
[1756518566089,2.36879147,202.97,202.89,2.86286501]
[1756518566388,7.19,202.98,202.89,2.86286501]
[1756518566587,2.36892922,202.97,202.89,2.86286501]
[1756518566780,7.19,202.98,202.89,2.86286501]
[1756518566979,2.36850711,202.97,202.89,2.86286501]
[1756518567181,7.19,202.98,202.88,7.86]
[1756518567379,2.36847237,202.97,202.88,10.72286501]
[1756518567582,7.19,202.98,202.88,10.72286501]
[1756518567790,2.36871936,202.97,202.91,2.86286501]
[1756518567990,7.19,203.02,202.95,7.86]
[1756518568891,7.19,203.02,202.89,7.86]
[1756518569087,7.19,203.0,202.89,10.72286501]
[1756518569394,2.36871453,202.99,202.89,7.86]
[1756518569595,7.19,202.99,202.89,10.72286501]
[1756518569884,7.19,202.99,202.89,7.86]
[1756518570490,2.36787708,202.98,202.89,7.86]
[1756518570689,7.19,202.99,202.89,7.86]
[1756518570885,2.36796465,202.98,202.89,7.86]
[1756518571190,7.19,202.99,202.89,7.86]
[1756518571390,2.36781036,202.98,202.89,7.86]
[1756518571591,7.19,202.99,202.89,7.86]
[1756518571791,2.36790279,202.98,202.89,7.86]
[1756518571992,7.19,202.99,202.89,7.86]
[1756518572189,2.3679069,202.98,202.89,7.86]
[1756518572389,2.36777851,202.97,202.89,7.86]
[1756518572591,9.55762491,202.96,202.85,10.72286501]
[1756518572789,7.19,202.95,202.85,10.72286501]
[1756518572988,2.36738283,202.94,202.85,10.72286501]
[1756518573192,7.19,202.95,202.85,10.72286501]
[1756518573485,2.36726184,202.94,202.85,10.72286501]
[1756518573691,7.19,202.95,202.85,10.72286501]
[1756518573890,2.36728471,202.94,202.85,10.72286501]
[1756518574193,7.19,202.95,202.85,10.72286501]
[1756518574394,2.3671678,202.94,202.85,10.72286501]
[1756518574694,7.19,202.95,202.85,10.72286501]
[1756518574992,2.36667566,202.94,202.85,10.72286501]
[1756518575191,7.19,202.95,202.85,2.86286501]
[1756518575386,7.19,202.95,202.86,7.86]
[1756518577895,7.19,202.95,202.86,10.72286501]
[1756518579397,2.36869084,202.94,202.86,10.72286501]
[1756518579597,7.19,202.95,202.86,10.72286501]
[1756518579894,2.36867021,202.94,202.86,10.72286501]
[1756518580095,2.3689096,202.93,202.86,10.72286501]
[1756518580299,7.19,202.95,202.86,10.72286501]
[1756518580497,2.36878728,202.94,202.86,10.72286501]
[1756518580696,2.36878728,202.93,202.86,10.72286501]
[1756518580899,7.19,202.95,202.86,10.72286501]
[1756518581196,2.36881155,202.94,202.87,7.52]
[1756518581399,2.36881155,202.93,202.87,7.52]
[1756518581592,7.19,202.95,202.87,7.52]
[1756518581793,2.36960259,202.94,202.87,7.52]
[1756518581994,2.36952813,202.93,202.82,7.52]
[1756518582300,7.22,202.91,202.82,10.38286501]
[1756518583403,7.22,202.91,202.83,7.52]
[1756518584600,2.86286501,202.98,202.83,7.52]
[1756518584800,9.58910469,202.97,202.86,7.52]
[1756518585100,2.36910469,202.96,202.86,7.52]
[1756518585601,7.22,202.95,202.86,7.52]
[1756518585802,2.36910469,202.94,202.86,7.52]
[1756518585997,7.22,202.95,202.86,7.52]
[1756518586198,2.36906352,202.94,202.86,10.38286501]
[1756518586402,2.36906352,202.93,202.86,10.38286501]
[1756518586702,7.22,202.95,202.86,10.38286501]
[1756518586904,2.36900685,202.94,202.86,7.52]
[1756518587106,2.36900685,202.93,202.86,10.38286501]